Cogmind - Beta 10.2 @@@ ROGUE MODE // 2022.02.15 @ 05:04:50 Player: Conner Result: Destroyed by G-34 Mercenary with Small Laser Performance ------------- Evolutions (0) 0 Regions Visited (2) 400 Robots Destroyed (11) 55 Value Destroyed (299) 299 Prototype IDs (2) 40 Alien Tech Used (0) 0 Bonus (0) 0 TOTAL SCORE: 794 Bonus ------- None Cogmind --------- Core Integrity 0/250 Matter 292/300 Energy 100/100 System Corruption 0% Temperature Cool (6) Movement Walking (120) Location -10/Mines Parts ------- > --- POWER (1) -------- (None) > --- PROPULSION (2) --- Aluminum Leg > --- UTILITY (2) ------ Improved Heat Sink Signal Interpreter > --- WEAPON (2) ------- (None) > --- INVENTORY (4) ---- Light Ion Engine Mining Laser Peak State ------------ > --- POWER ------------ Light Nuclear Core > --- PROPULSION ------- Aluminum Leg Aluminum Leg > --- UTILITY ---------- Improved Heat Sink Signal Interpreter > --- WEAPON ----------- Mining Laser Mining Laser > --- INVENTORY -------- Light Ion Engine Aluminum Leg Aluminum Leg Mining Laser [Rating: 11] Favorites ----------- Power Ion Engine Engine Ion Engine Power Core Light Nuclear Core Propulsion Compact Wheel Leg Aluminum Leg Wheel Compact Wheel Utility Signal Interpreter Device Improved Heat Sink Storage Small Storage Unit Processor Signal Interpreter Weapon Mining Laser Energy Gun Medium Laser Ballistic Gun Light Assault Rifle Special Weapon Mining Laser Build | -11 -10 -10 ------- Run | Scr Mat Min Slots Evolved . | . . . Power . | . . . Propulsion . | . . . Utility . | . . . Weapon . | . . . Parts Attached 27 | 6 19 2 Power 5 | 1 4 . Engine 3 | 1 2 . Core 2 | . 2 . Reactor . | . . . Propulsion 10 | 2 6 2 Treads . | . . . Leg 5 | . 3 2 Wheel 5 | 2 3 . Hover . | . . . Flight . | . . . Utility 5 | 1 4 . Device 2 | . 2 . Storage 1 | 1 . . Processor 2 | . 2 . Hackware . | . . . Protection . | . . . Artifact . | . . . Weapon 7 | 2 5 . Energy Gun 4 | 2 2 . Energy Cannon . | . . . Ballistic Gun 1 | . 1 . Ballistic Cannon . | . . . Launcher . | . . . Special Weapon 2 | . 2 . Impact Weapon . | . . . Slashing Weapon . | . . . Piercing Weapon . | . . . Special Melee Weapon . | . . . Unidentified Prototypes . | . . . Parts Lost 13 | . 7 6 Power 2 | . 1 1 Propulsion 4 | . 1 3 Utility 1 | . 1 . Weapon 6 | . 4 2 Highest Loss Streak 5 | . 3 5 Average Slot Usage (%) 86 | . 84 92 Engine 8 | . 12 . Core 4 | . 1 11 Leg 11 | . 4 27 Wheel 16 | . 23 . Device 6 | . 2 14 Storage 4 | . 6 . Processor 10 | . 8 14 Energy Gun 12 | . 17 . Ballistic Gun 3 | . 4 . Special Weapon 7 | . . 23 Naked Turns . | . . . Heaviest Build 13 | 13 13 8 Greatest Support 32 | 32 32 20 Greatest Overweight (x) . | . . . Average Overweight (x) . | . . . Largest Inventory Capacity 6 | 6 6 4 Average Capacity 4 | 5 4 4 Most Carried 6 | 4 6 4 Average Carried 3 | 2 3 3 Final Capacity 6 | 6 4 4 Final Carried 4 | 4 4 2 Class Distribution -------------------- 58% | Mutant 41% | Scavenger-Mutant Dominant Class ---------------- Mutant | -10/Materials Scavenger-Mutant | -10/Mines Resources | -11 -10 -10 ----------- Run | Scr Mat Min Matter Collected 436 | 209 215 12 Remotely . | . . . Salvage Created 401 | . 401 . Parts 21 | . 21 . Haulers Intercepted . | . . . Recyclers Shooed 1 | . 1 . Parts Field Recycled . | . . . Retrieved Matter . | . . . Parts Self-Destructed . | . . . Prevented . | . . . Kills | -11 -10 -10 ------- Run | Scr Mat Min Combat Hostiles Destroyed 7 | . 6 1 Guns 5 | . 5 . Cannons 1 | . . 1 AOE 1 | . 1 . Classes Destroyed 5 | . 4 1 Worker 1 | . 1 . Recycler 1 | . 1 . Watcher 2 | . 2 . Swarmer 1 | . . 1 Grunt 6 | . 6 . Best Kill Streak 4 | . 4 1 Combat Bots Only 4 | . 4 1 Max Kills in Single Turn 1 | . 1 1 Gunslinging . | . . . Exploded 1 | . 1 . Melee . | . . . Uniques/NPCs Destroyed . | . . . Combat | -11 -10 -10 -------- Run | Scr Mat Min Damage Taken 1212 | . 696 516 Core 260 | . 121 139 Absorbed by Shields . | . . . Core Remaining (%) 100 | 100 . . Volleys Fired 67 | . 61 6 Largest 2 | . 2 2 Hottest 200 | . 90 200 Shots Fired 93 | . 82 11 Gun 82 | . 82 . Cannon . | . . . Launcher . | . . . Special 11 | . . 11 Kinetic 39 | . 39 . Thermal 35 | . 24 11 Explosive . | . . . Electromagnetic 19 | . 19 . Robot Hit Streak 9 | . 9 1 Robot Miss Streak 3 | . 3 1 Penetration Max . | . . . Secondary Targets 1 | . 1 . Max Gunslinging Chain 1 | . 1 . Shots Hit Robots 51 | . 49 2 Core Hits 25 | . 24 1 Critical Hits . | . . . Critical Kills . | . . . Critical Parts Destroyed . | . . . Melee Attacks . | . . . Impact . | . . . Slashing . | . . . Piercing . | . . . Sneak Attacks . | . . . Combat Hostiles . | . . . Follow-up Attacks . | . . . Damage Inflicted 882 | . 810 72 Guns 614 | . 614 . Cannons . | . . . Explosions 196 | . 196 . Melee . | . . . Ramming . | . . . Kinetic 209 | . 209 . Thermal 353 | . 281 72 Explosive 113 | . 113 . Electromagnetic 207 | . 207 . Impact . | . . . Slashing . | . . . Piercing . | . . . Highest Corruption . | . . . Average Corruption . | . . . Corruption Purged . | . . . Overload Shots . | . . . Overflow Damage 4 | . 4 . Projectiles . | . . . Explosions 4 | . 4 . Melee . | . . . Knockbacks . | . . . Impact . | . . . Kinetic . | . . . Secondary . | . . . Self-Inflicted Damage 23 | . 23 . Shots 1 | . 1 . Rammed . | . . . Targets Rammed . | . . . Kicked . | . . . Crushed . | . . . Highest Temperature 315 | . 315 2 Average Temperature 92 | . 95 2 Received Heat Transfer 468 | . 378 90 Effects 4 | . 4 . Energy Bleed 1 | . 1 . Interference 3 | . 3 . Siege Activations . | . . . Robots Corrupted . | . . . Combat Hostiles . | . . . Parts Fried . | . . . Impact Corruptions . | . . . Robots Melted . | . . . Combat Hostiles . | . . . Parts Melted . | . . . Heat Transferred 845 | . 695 150 Parts Sabotaged . | . . . Parts Stolen . | . . . Parts Stripped . | . . . Power Chain Reactions 2 | . 2 . Missiles Intercepted . | . . . Alert | -11 -10 -10 ------- Run | Scr Mat Min Peak Influence 204 | . 204 75 Initial 75 | . . 75 Average 66 | . 70 70 Maximum Alert Level 1 | . 1 . Low Security (%) 96 | 100 95 100 Level 1 3 | . 4 . Level 2 . | . . . Level 3 . | . . . Level 4 . | . . . Level 5 . | . . . High Security . | . . . Max Security . | . . . Squads Dispatched 1 | . 1 . Investigation . | . . . Extermination . | . . . Reinforcement 1 | . 1 . Assault . | . . . Garrison . | . . . Intercept . | . . . Construction Impeded . | . . . Haulers Reinforced . | . . . Stealth | -11 -10 -10 --------- Run | Scr Mat Min Distress Signals 3 | . 2 1 Communications Jammed . | . . . Distress Signals . | . . . Times Spotted 22 | . 14 8 Peak Tracking Total 7 | . 3 7 Tactical Retreats 2 | . 2 . Traps | -11 -10 -10 ------- Run | Scr Mat Min Traps Triggered . | . . . Indirectly . | . . . Trap Hack Attempts . | . . . Triggered . | . . . Disarmed . | . . . Reprogrammed . | . . . Reused . | . . . Traps Extracted . | . . . Installed . | . . . Triggered . | . . . Machines | -11 -10 -10 ---------- Run | Scr Mat Min Machines Disabled 2 | . 2 . Max in Single Turn 2 | . 2 . Machines Sabotaged . | . . . Garrisons Compromised . | . . . Overloaded Fab Kills . | . . . Fab Network Shutdowns . | . . . Hacking | -11 -10 -10 --------- Run | Scr Mat Min Machines Accessed 6 | . 6 . Terminals 6 | . 6 . Fabricators . | . . . Repair Stations . | . . . Recycling Units . | . . . Scanalyzers . | . . . Garrison Access . | . . . Total Hacks 22 | . 22 . Successful 16 | . 16 . Failed 6 | . 6 . Catastrophic . | . . . Database Lockouts . | . . . Manual 16 | . 16 . Terminals 22 | . 22 . Fabricators . | . . . Repair Stations . | . . . Recycling Units . | . . . Scanalyzers . | . . . Garrison Access . | . . . Terminal Hacks 8 | . 8 . Record 1 | . 1 . Robot Analysis 1 | . 1 . Prototype ID Bank 2 | . 2 . Terminal Index 2 | . 2 . Alert Level 1 | . 1 . Zone Layout 1 | . 1 . Fabricator Hacks . | . . . Repair Station Hacks . | . . . Recycling Unit Hacks . | . . . Scanalyzer . | . . . Garrison Access Hacks . | . . . Unauthorized Hacks 8 | . 8 . Terminals 8 | . 8 . Track 1 | . 1 . Assimilate 3 | . 3 . Botnet 2 | . 2 . Detonate 1 | . 1 . Operators 1 | . 1 . Fabricators . | . . . Repair Stations . | . . . Recycling Units . | . . . Scanalyzers . | . . . Garrison Access . | . . . Data Cores Recovered . | . . . Used . | . . . Hacking Detections 6 | . 6 . Full Trace Events 3 | . 3 . Feedback Events . | . . . Feedback Blocked . | . . . Robot Schematics Acquired . | . . . Robots Built . | . . . Matter . | . . . Time . | . . . Total Robot Build Rating . | . . . Part Schematics Acquired . | . . . Parts Built . | . . . Matter . | . . . Time . | . . . Total Part Build Rating . | . . . Parts Repaired . | . . . Time . | . . . Parts Recycled . | . . . Recycled Matter . | . . . Retrieved Matter . | . . . Retrieved Components . | . . . Parts Scanalyzed . | . . . Part Schematics Acquired . | . . . Parts Damaged . | . . . Bothacking | -11 -10 -10 ------------ Run | Scr Mat Min Used RIF Installer . | . . . Robots Hacked . | . . . Non-combat . | . . . Combat . | . . . Robot Hacks Applied . | . . . Relay Couplers Released . | . . . Robots Rewired . | . . . Allies Hacked . | . . . Hacks Repelled . | . . . Allies | -11 -10 -10 -------- Run | Scr Mat Min Total Allies 2 | . 2 . Largest Group 2 | . 2 . Highest-Rated Group 20 | . 20 . Highest-Rated Ally 10 | . 10 . Total Orders . | . . . Ally Attacks . | . . . Total Damage . | . . . Kills . | . . . Allies Corrupted . | . . . Allies Melted . | . . . Intel | -11 -10 -10 ------- Run | Scr Mat Min Robot Analysis Total 1 | . 1 . Derelict Logs Recovered 1 | . . 1 Drone Launches . | . . . Drone Recoveries . | . . . Exploration | -11 -10 -10 ------------- Run | Scr Mat Min Turns Passed 1144 | 59 767 318 Spaces Moved 671 | 47 406 218 Core 1 | 1 . . Treads . | . . . Legs 279 | . 61 218 Wheels 391 | 46 345 . Hover . | . . . Flight . | . . . Fastest Speed 50 | 50 90 120 Average Speed 107 | 98 101 120 Slowest Speed 120 | 100 120 120 Overloaded Moves . | . . . Propulsion Burnouts . | . . . Robots Hopped . | . . . Cave-ins Triggered . | . . . Exploration Rate (%) 34 | 3 47 53 Regions Visited 2 Branch Regions 1 Pre-discovered Areas . | . . . Known Exits Taken 1 | . 1 . Unknown Exits Taken 1 | 1 . . Scrap Searched 1 | . . 1 Spaces Dug . | . . . Terrain Destroyed 56 | . 56 . Melee . | . . . Projectile . | . . . AOE 56 | . 56 . Terrain Rammed . | . . . Walls Destroyed . | . . . Machines Disabled . | . . . Actions | -11 -10 -10 --------- Run | Scr Mat Min Total 986 | 56 689 241 Wait 198 | . 183 15 Move 669 | 46 405 218 Hop . | . . . Pick Up 11 | 4 7 . Fast Attach 15 | 6 9 . Attach 5 | . 3 2 Detach . | . . . Swap 7 | . 7 . Drop 14 | . 14 . Fire 67 | . 61 6 Melee . | . . . Ram . | . . . Kick . | . . . Crush . | . . . Escape Stasis . | . . . Rewire . | . . . Trap . | . . . Miscellaneous . | . . . Route ------- -11/Scrapyard -10/Materials -10/Mines (discovered 1 exit: [*Mat]) History --------- Turn | Location | Event 21 | -11/Scrapyard | Discovered new exit (range 15) 60 | -11/Scrapyard | Entered Materials 308 | -10/Materials | Build established: Mutant 535 | -10/Materials | Discovered new exit (range 9) 550 | -10/Materials | Identified exit to Mines 799 | -10/Materials | Lost 3 parts (1p2w) 827 | -10/Materials | Entered Mines 890 | -10/Mines | Excavation squad dispatched 890 | -10/Mines | A large section of the Mines collapsed 920 | -10/Mines | Build established: Scavenger-Mutant 1090 | -10/Mines | Core integrity fell below 50% 1122 | -10/Mines | Core integrity fell below 20% 1130 | -10/Mines | Lost 5 parts (1p2n2w) 1140 | -10/Mines | Excavation squad dispatched 1140 | -10/Mines | Discovered new exit (range 8) 1145 | -10/Mines | Destroyed by G-34 Mercenary with Small Laser Last Messages --------------- 00884_ Acquired derelict log, extracted data. Data stored: Mines entrances (x2). 00890_ ALERT: Suspicious cave-in, suspected derelict activity in mines. Dispatching escorted excavation squad. 00938_ U-05 Engineer lays Concrete. 00980_ K-01 Serf collects debris. 01087_ Aluminum Leg destroyed. 01090_ K-01 Serf collects debris. 01091_ Mining Laser destroyed. 01092_ S-10 Pest destroyed. 01092_ K-01 Serf collects debris. 01093_ Aluminum Leg destroyed. 01096_ Lgt. Nuclear Core destroyed. 01097_ K-01 Serf collects debris. 01099_ Mining Laser destroyed. 01100_ K-01 Serf collects debris. 01140_ ALERT: Derelict activity in mines confirmed. Dispatching additional escorted excavation squad. 01140_ EXIT=FOUND 01144_ Aluminum Leg destroyed. Map ----- +----------------------------------------------------+ | | | | | | | | | | | | | ??????????????????????????????? | | ??????????????????????????????? | | ??????????????????????????????? | | ????????######????????????????? | | ????????# ##???????????????? | | ????????# ##??????????????? | | ????????# ##???#####?????? | | ?????????# #??## ##????? | | ????###### #??# #????? | | ???## ## #???# ##???? | | ??## ##??## ##??? | | ?## ##### #### | | ?# ## ## | | ?# #### | | ?## #??######## ### | | ??# ##?????????######?## | | ??# ##??????????????????##### | | ??#ss##??????????????????????## | | ??# ##??????????????????????# | | ??# @#??????????????????????? | | ??# #??????????????????????? | | ??# gg#??????????????????????? | | ??##gtg ??????????????????????? | | ???## < ?????????????????????? | | ????# t ?????????????????????? | | ????# ????????????????????? | | ????# #???????????????????? | | ????## ###???????????????????? | | ??????###?????????????????????? | | ??????????????????????????????? | | ??????????????????????????????? | | ??????????????????????????????? | | ??????????????????????????????? | | ??????????????????????????????? | | ??????????????????????????????? | | ??????????????????????????????? | | ??????????????????????????????? | | ??????????????????????????????? | | ??????????????????????????????? | | ??????????????????????????????? | | ??????????????????????????????? | | ??????????????????????????????? | | ??????????????????????????????? | | ??????????????????????????????? | +----------------------------------------------------+ Best States ------------- Heat Dissipation 39 Energy Generation 14 Energy Capacity 250 Matter Stores 300 Matter Capacity 300 Sight Range 16 Robot Scan Range 10 Terrain Scan Density 10 Evasion (%) 42 Item Schematics ----------------- None Robot Schematics ------------------ None Fabricated ------------ Nothing Alien Tech Used ----------------- None Achievements -------------- None Challenges ------------ None Game ------ Seed VisualStormWarhead Manual? 0 Play Time 00:08:33 Cumulative 43.1 hours Start 2022.02.15 @ 04:57:31 End 2022.02.15 @ 05:04:50 Sessions 1 Manual Loads 0 Difficulty Rogue Special Mode None Game No. 72 Rogue 72 Adventurer 0 Explorer 0 Win Type - Total 0 Types 0/0/0/0/0/0/0/0/0 Lore% 51 Gallery% 51 Achievement% 41 Wizard Run 0 Options --------- ASCII 0 Keyboard 0 Movement Numpad Keybinds 0 Fullscreen 1 Font 24/Smallcaps Map View 76x50 Tactical HUD 1 Map Filters NONE Filters NONE Steam 1 RUN: 6623750f-4ba4-49c5-be6b-2f9c85e10c84